bitfinex/quotes_ETHUSD_20250730
["timestamp","ask_amount","ask_price","bid_price","bid_amount"]
[1753833965267,47.19973203,3793.2,3793.1,0.04]
[1753833970269,17.33752342,3793.2,3793.1,0.04]
[1753833970441,47.33752342,3793.2,3793.1,0.04]
[1753833971634,47.47189165,3793.2,3793.1,0.04]
[1753833971830,2.63692218,3792.3,3792.2,0.4741]
[1753833972039,46.54792218,3792.3,3792.2,0.4741]
[1753833972239,46.54792218,3792.3,3792.2,0.001]
[1753833972240,46.67992218,3792.3,3792.2,0.001]
[1753833972640,51.04492218,3792.3,3792.2,0.001]
[1753833973730,41.607,3792.3,3792.2,0.001]
[1753833973929,45.628,3792.3,3792.2,0.8611]
[1753833974342,48.26492218,3792.3,3792.2,0.001]
[1753833974970,51.04492218,3792.3,3792.2,0.001]
[1753833976286,21.04492218,3792.3,3792.2,0.001]
[1753833976491,51.04492218,3792.3,3792.2,0.001]
[1753833980276,7.77199171,3792.2,3792.1,0.04]
[1753833980481,37.77199171,3792.2,3792.1,0.04]
[1753833981005,41.75312721,3792.2,3792.1,0.04]
[1753833981357,42.21952721,3792.2,3792.1,0.04]
[1753833982661,46.24052721,3792.2,3792.1,0.04]
[1753833985398,46.37845984,3792.2,3792.1,0.04]
[1753833986269,47.19375984,3792.2,3792.1,0.04]
[1753833990387,47.45795984,3792.2,3792.1,0.04]
[1753833992509,47.08411856,3792.2,3792.1,0.04]
[1753833992825,16.61771856,3792.2,3792.1,0.04]
[1753833993118,35.135,3789.2,3788.9,0.4431]
[1753833993272,35.135,3789.2,3789.1,0.4831]
[1753833993273,45.525,3789.2,3789.1,0.4831]
[1753833993473,45.545,3789.2,3789.1,0.4831]
[1753833993714,9.892,3789.2,3789.1,1.2944]
[1753833994015,0.1379,3789.7,3789.2,0.8178]
[1753833994178,4.07,3789.6,3789.2,0.8178]
[1753833994582,30.0,3789.5,3789.2,0.8178]
[1753833994774,32.63900984,3789.3,3789.2,0.8178]
[1753833995616,36.72300984,3789.3,3789.2,0.8178]
[1753833995914,37.634,3789.3,3789.2,0.8178]
[1753833996212,37.634,3789.3,3789.1,0.04]
[1753833996213,3.55,3789.2,3789.1,0.04]
[1753833996518,3.0,3789.2,3789.1,0.8327]
[1753833996699,4.092,3789.2,3789.1,0.8327]
[1753833997022,4.094,3789.2,3789.1,0.8337]
[1753833997608,6.343,3789.4,3789.1,0.8337]
[1753833997814,0.20270001,3789.5,3789.1,0.8337]
[1753833998014,4.094,3789.4,3789.1,0.8337]
[1753833999579,4.093,3789.3,3789.1,0.8337]
[1753834001106,4.091,3789.4,3789.3,0.7853]
[1753834002386,30.0,3790.6,3789.3,0.7853]
[1753834002715,3.0,3790.4,3789.3,0.7853]
[1753834002918,0.132,3790.0,3789.4,0.132]
[1753834003077,6.67586816,3790.8,3789.4,0.8921]
[1753834003078,4.1,3789.9,3789.4,0.8921]
[1753834003281,4.1,3790.0,3789.4,0.8921]
[1753834003834,0.132,3790.1,3789.4,0.8921]
[1753834003992,4.232,3790.1,3789.4,0.8921]
[1753834004521,0.132,3790.1,3789.4,0.8921]
[1753834006846,4.096,3790.2,3789.4,0.7601]
[1753834007050,4.096,3790.3,3790.0,0.787]
[1753834009290,0.132,3790.2,3790.0,0.787]
[1753834013291,4.091,3790.1,3790.0,0.787]
[1753834018434,4.093,3790.1,3790.0,0.787]
[1753834018740,4.529,3790.1,3790.0,0.787]
[1753834022905,4.66033754,3790.1,3790.0,0.787]
[1753834023447,4.22433754,3790.1,3790.0,0.787]
[1753834024138,4.093,3790.1,3790.0,0.787]
[1753834024705,0.002,3790.1,3790.0,0.787]
[1753834024907,4.084,3790.1,3790.0,0.787]
[1753834026422,4.518,3790.1,3790.0,0.787]
[1753834027760,0.002,3790.1,3790.0,0.787]
[1753834027949,4.082,3790.1,3790.0,0.787]
[1753834028443,4.516,3790.1,3790.0,0.787]
[1753834030723,5.0567,3790.1,3790.0,0.787]
[1753834031979,4.082,3790.1,3790.0,0.787]
[1753834032352,4.6227,3790.1,3790.0,0.787]
[1753834033376,5.0567,3790.1,3790.0,0.787]
[1753834035291,4.6227,3790.1,3790.0,0.787]
[1753834035840,4.082,3790.1,3790.0,0.787]
[1753834036462,0.002,3790.1,3790.0,0.787]
[1753834036775,4.074,3790.1,3790.0,0.787]
[1753834036974,4.073,3790.1,3790.0,0.787]
[1753834046732,0.002,3790.1,3790.0,0.787]
[1753834051106,0.002,3790.1,3790.0,0.79324693]
[1753834051305,0.002,3790.1,3790.0,0.919]
[1753834054791,0.9891,3790.1,3790.0,0.787]
[1753834054938,0.9891,3790.1,3789.8,0.132]
[1753834055137,0.9891,3790.1,3789.1,3.041]
[1753834055138,5.0451,3790.0,3789.1,0.041]
[1753834055677,0.132,3789.3,3789.1,0.041]
[1753834055971,0.9871,3789.2,3789.1,0.041]
[1753834058684,0.132,3789.3,3789.1,0.041]
[1753834058897,4.056,3789.4,3789.1,0.041]
[1753834059181,0.132,3789.6,3789.1,0.041]
[1753834059182,0.132,3789.6,3789.2,0.7748]
[1753834059381,4.058,3789.5,3789.4,0.132]
[1753834060295,0.5347,3789.6,3789.4,0.132]
[1753834062254,4.5907,3789.6,3789.4,0.132]
[1753834062650,4.056,3789.6,3789.4,0.132]
[1753834062965,0.132,3789.9,3786.8,0.1742]
[1753834062966,0.814,3789.0,3786.8,0.1742]
[1753834063155,0.814,3788.8,3787.2,0.752]
[1753834063348,0.9871,3789.2,3787.4,0.752]
[1753834063561,0.9871,3789.1,3787.6,0.752]
[1753834063890,0.5347,3789.7,3787.9,1.3146]
[1753834064065,0.5347,3789.7,3788.1,3.18978499]
[1753834064268,0.5347,3789.7,3788.3,0.7646]
[1753834064464,0.5347,3789.7,3788.4,2.64513678]
[1753834064664,0.5347,3789.7,3788.4,2.81933678]
[1753834065152,0.5347,3789.7,3788.6,3.0]
[1753834065563,0.5347,3789.7,3788.6,5.63949637]
[1753834065764,0.5347,3789.7,3788.8,3.813]
[1753834066165,0.04,3789.9,3788.9,0.9739]
[1753834066468,0.04,3789.9,3789.5,3.0]
[1753834066776,0.04,3789.9,3789.6,0.8226]
[1753834067594,0.002,3790.5,3789.9,5.63854143]
[1753834067808,0.002,3790.5,3790.0,6.41662242]
[1753834068298,0.002,3790.5,3790.2,3.0]
[1753834068589,0.002,3790.5,3790.0,3.9578]
[1753834068798,0.002,3790.5,3790.0,0.7781]
[1753834069003,0.5347,3790.4,3790.2,3.0]
[1753834069498,0.9871,3790.3,3789.6,0.7602]
[1753834069678,0.9871,3790.2,3789.6,0.7602]
[1753834070204,0.002,3790.5,3789.6,0.7602]
[1753834070420,0.9871,3790.4,3789.6,0.7602]
[1753834070766,0.5347,3790.4,3789.6,0.7602]
[1753834070965,0.002,3790.5,3789.8,3.0]
[1753834071574,0.002,3790.5,3789.8,5.63864044]
[1753834071775,0.002,3790.5,3789.8,3.0]
[1753834072166,0.002,3790.5,3789.7,3.5518]
[1753834073073,0.002,3790.5,3790.4,0.132]
[1753834073879,0.5367,3790.5,3790.4,0.132]
[1753834074218,0.002,3790.5,3790.4,0.8847]
[1753834077332,0.9891,3790.5,3790.4,0.132]
[1753834077513,0.5367,3790.5,3790.4,0.132]
[1753834078641,0.002,3790.5,3790.4,0.132]
[1753834079337,0.002,3790.5,3790.4,0.902]
[1753834079633,0.5347,3791.4,3790.5,3.0]
[1753834079935,0.5347,3791.4,3790.4,5.125]
[1753834079936,0.9871,3791.4,3790.7,3.0]
[1753834080228,0.5347,3791.3,3790.7,3.0]
[1753834080663,0.9871,3791.3,3790.6,4.177]
[1753834080820,0.9871,3791.2,3790.6,4.177]
[1753834081151,0.9871,3791.1,3790.4,0.77]
[1753834081359,0.9871,3791.0,3790.4,0.77]
[1753834081704,0.9981,3790.9,3789.6,0.7664]
[1753834082065,0.7758,3790.7,3789.1,0.04]
[1753834082356,0.7749,3790.6,3789.1,0.04]
[1753834082561,0.7749,3790.5,3789.1,0.04]
[1753834082711,0.9989,3790.5,3789.1,0.04]
[1753834082912,1.7738,3790.4,3789.1,0.04]
[1753834083418,0.7749,3790.4,3789.1,0.04]
[1753834083626,0.9989,3790.3,3789.1,0.04]
[1753834083933,0.8308,3790.2,3789.1,0.04]
[1753834084402,0.9989,3790.1,3789.1,0.04]
[1753834084806,0.9989,3790.0,3789.1,0.04]
[1753834085234,0.4634,3790.0,3789.1,0.04]
[1753834085437,0.5355,3789.9,3789.1,0.04]
[1753834086123,0.4634,3789.8,3789.1,0.04]
[1753834086711,0.5355,3789.7,3789.1,0.04]
[1753834089467,0.5355,3789.7,3789.3,0.132]
[1753834089767,0.9989,3789.6,3789.3,0.132]
[1753834089973,0.5355,3789.5,3789.3,0.132]
[1753834090966,0.5355,3789.9,3789.3,0.132]
[1753834091374,0.5355,3789.9,3789.7,0.132]
[1753834091739,0.4634,3789.8,3789.7,0.132]
[1753834092280,0.9989,3789.8,3789.7,0.132]
[1753834094577,0.5355,3789.8,3789.7,0.132]
[1753834096285,0.9989,3789.8,3789.7,0.132]
[1753834099563,0.5355,3789.8,3789.7,0.132]
[1753834101076,0.5355,3790.0,3789.7,0.132]
[1753834101603,0.5355,3789.9,3789.7,0.132]
[1753834101762,0.9989,3789.9,3789.7,0.132]
[1753834101963,0.5355,3789.8,3789.7,0.132]
[1753834104605,0.9989,3789.8,3789.7,0.132]
[1753834107068,0.9989,3789.8,3789.6,0.001]
[1753834107269,0.8308,3790.2,3789.6,0.133]
[1753834107470,0.9989,3789.7,3789.6,0.133]
[1753834108071,1.921,3789.7,3789.6,0.001]
[1753834112803,1.921,3789.7,3789.6,0.001]
[1753834113901,1.4576,3789.7,3789.6,0.001]
[1753834114088,1.1086,3789.7,3789.6,0.001]
[1753834115837,1.30619796,3789.7,3789.6,0.001]
[1753834116717,1.1086,3789.7,3789.6,0.001]
[1753834123848,0.9766,3789.7,3789.6,0.001]
[1753834124486,1.1752586,3789.7,3789.6,0.001]
[1753834125239,1.9461586,3789.7,3789.6,0.001]
[1753834128183,0.1986586,3789.7,3789.6,0.001]
[1753834128382,0.9434,3789.7,3789.6,0.001]
[1753834133999,1.0754,3789.7,3789.6,0.001]
[1753834134595,1.8882,3789.7,3789.6,0.001]
[1753834140743,0.6343,3789.7,3789.6,0.001]
[1753834141923,1.1011,3789.7,3789.6,0.001]
[1753834142223,1.7235186,3789.7,3789.6,0.001]
[1753834159606,1.2567186,3789.7,3789.6,0.001]
[1753834159856,0.132,3789.7,3789.6,0.001]
[1753834160047,0.6376,3789.7,3789.6,0.001]
[1753834160243,1.1044,3789.7,3789.6,0.001]
[1753834164862,3.132,3789.7,3789.6,0.001]
[1753834165033,3.6376,3789.7,3789.6,0.001]
[1753834166465,4.1044,3789.7,3789.6,0.001]
[1753834168759,4.932,3789.7,3789.6,0.001]
[1753834171858,4.1044,3789.7,3789.6,0.001]
[1753834173770,0.132,3789.7,3789.6,0.001]
[1753834173965,4.209,3789.7,3789.6,0.001]
[1753834174175,4.7173,3789.7,3789.6,0.001]
[1753834175217,0.132,3789.7,3789.6,0.001]
[1753834175504,7.02,3791.6,3789.6,1.0006]
[1753834175663,6.8513,3790.7,3789.7,0.1742]
[1753834175877,0.132,3790.3,3789.8,0.9506]
[1753834176064,0.132,3790.5,3790.1,0.8186]
[1753834176301,4.08,3790.4,3790.2,0.1742]
[1753834176705,0.132,3790.5,3790.2,0.1742]
[1753834176905,4.08,3790.3,3790.2,0.1742]
[1753834178199,4.08,3790.3,3790.1,0.8186]
[1753834178572,4.5883,3790.3,3790.1,0.8186]
[1753834178766,4.7203,3790.3,3790.1,0.8186]
[1753834180175,4.212,3790.3,3790.1,0.8186]
[1753834181219,0.9391,3790.2,3789.8,0.7813]
[1753834181371,4.208,3790.1,3789.8,0.7813]
[1753834181572,4.7163,3790.1,3789.8,0.7813]
[1753834184073,4.208,3790.1,3789.8,0.7813]
[1753834184988,4.7163,3790.1,3789.8,0.7813]
[1753834185913,0.5083,3790.0,3789.8,0.7813]
[1753834186099,4.208,3790.1,3789.8,0.7813]
[1753834186418,4.7163,3790.1,3789.8,0.7813]
[1753834187010,0.5083,3790.0,3789.8,0.7813]
[1753834188529,5.1401,3789.9,3789.6,0.001]
[1753834188728,5.0081,3789.9,3789.6,0.001]
[1753834188883,0.132,3789.7,3789.6,0.001]
[1753834189078,4.202,3789.7,3789.6,0.001]
[1753834189416,5.1411,3789.7,3789.6,0.001]
[1753834190009,5.65521,3789.7,3789.6,0.001]
[1753834190207,6.45391,3789.7,3789.6,0.001]
[1753834191545,9.45391,3789.7,3789.6,0.001]
[1753834199734,9.44691,3789.7,3789.6,0.001]
[1753834200560,5.38391,3789.7,3789.6,0.001]
[1753834200932,9.44691,3789.7,3789.6,0.001]
[1753834203332,8.9328,3789.7,3789.6,0.001]
[1753834206546,8.1341,3789.7,3789.6,0.001]
[1753834207682,4.0711,3789.7,3789.6,0.001]
[1753834207983,8.1341,3789.7,3789.6,0.001]
[1753834208192,7.195,3789.7,3789.6,0.001]
[1753834208342,7.6965,3789.7,3789.6,0.001]
[1753834210796,0.132,3789.7,3789.6,0.001]
[1753834211085,4.195,3789.7,3789.6,0.001]
[1753834211593,4.6965,3789.7,3789.6,0.001]
[1753834211796,0.6335,3789.7,3789.6,0.001]
[1753834211953,4.6965,3789.7,3789.6,0.001]
[1753834213808,4.195,3789.7,3789.6,0.001]
[1753834214005,3.0,3790.4,3789.7,0.809]
[1753834214208,3.0,3790.2,3789.7,0.809]
[1753834214375,0.132,3790.0,3789.6,0.001]
[1753834214576,0.132,3789.7,3789.6,0.001]
[1753834214802,4.195,3789.7,3789.6,0.001]
[1753834215010,5.1453,3789.7,3789.6,0.001]
[1753834215212,5.74015,3789.7,3789.6,0.001]
[1753834217077,10.08225,3789.7,3789.6,0.001]
[1753834218325,11.66825,3789.7,3789.6,0.001]
[1753834218531,10.08225,3789.7,3789.6,0.001]
[1753834220131,10.08225,3789.7,3789.2,0.001]
[1753834220132,0.7598,3789.3,3789.2,0.001]
[1753834220336,8.5048,3789.3,3789.2,0.001]
[1753834220536,39.4551,3789.3,3789.2,0.001]
[1753834221392,5.3921,3789.3,3789.2,0.001]
[1753834221591,8.9051,3789.3,3789.2,0.001]
[1753834221834,9.49995,3789.3,3789.2,0.001]
[1753834222017,8.1453,3789.3,3789.2,0.001]
[1753834222431,9.5206,3789.3,3789.2,0.001]
[1753834222608,39.5206,3789.3,3789.2,0.001]
[1753834223705,9.5206,3789.3,3789.2,0.001]
[1753834223912,39.5206,3789.3,3789.2,0.001]
[1753834224294,9.5206,3789.3,3789.2,0.001]
[1753834227649,9.65481848,3789.3,3789.2,0.001]
[1753834228746,39.65481848,3789.3,3789.2,0.001]
[1753834229815,42.29382832,3789.3,3789.2,0.001]
[1753834233369,39.65481848,3789.3,3789.2,0.001]
[1753834234983,9.65581848,3789.3,3789.2,0.001]
[1753834235177,9.92031848,3789.3,3789.2,0.001]
[1753834235477,9.65581848,3789.3,3789.2,0.001]
[1753834235683,12.29482832,3789.3,3789.2,0.001]
[1753834235884,9.65581848,3789.3,3789.2,0.001]
[1753834236540,42.29482832,3789.3,3789.2,0.001]
[1753834237488,39.65581848,3789.3,3789.2,0.001]
[1753834238185,42.29482832,3789.3,3789.2,0.001]
[1753834240565,12.29482832,3789.3,3789.2,0.001]
[1753834240766,42.29482832,3789.3,3789.2,0.001]
[1753834241982,42.29482832,3789.3,3789.1,0.04]
[1753834241983,6.18907948,3789.2,3789.1,0.04]
[1753834242291,37.10527948,3789.2,3789.1,0.04]
[1753834244775,39.48747948,3789.2,3789.1,0.04]
[1753834247531,45.83347948,3789.2,3789.1,0.04]
[1753834249710,49.89647948,3789.2,3789.1,0.04]
[1753834249885,45.83347948,3789.2,3789.1,0.04]
[1753834250089,49.89647948,3789.2,3789.1,0.04]
[1753834251625,19.89647948,3789.2,3789.1,0.04]
[1753834251836,49.89647948,3789.2,3789.1,0.04]
[1753834252787,19.89647948,3789.2,3789.1,0.04]
[1753834252986,49.89647948,3789.2,3789.1,0.04]
[1753834254300,49.89647948,3789.2,3789.1,0.041]
[1753834254621,49.89847948,3789.2,3789.1,0.041]
[1753834256088,19.89847948,3789.2,3789.1,0.041]
[1753834256502,49.89847948,3789.2,3789.1,0.041]
[1753834258249,19.89847948,3789.2,3789.1,0.041]
[1753834258410,49.89847948,3789.2,3789.1,0.041]
[1753834269850,38.53908844,3788.9,3788.8,0.001]
[1753834270077,42.60108844,3788.9,3788.8,0.001]
[1753834270482,43.68068844,3788.9,3788.8,0.001]
[1753834270689,13.68068844,3788.9,3788.8,0.001]
[1753834270994,43.68068844,3788.9,3788.8,0.001]
[1753834271705,33.55,3788.2,3788.1,0.04]
[1753834271876,39.33,3788.2,3788.1,0.04]
[1753834272194,40.2776,3788.2,3788.1,0.04]
[1753834273268,40.2776,3788.2,3785.4,2.64171203]
[1753834273269,38.6892,3787.2,3784.1,0.04]
[1753834273460,2.136,3786.9,3785.4,0.7847]
[1753834273672,30.0,3786.4,3786.2,0.7847]
[1753834273979,7.643,3786.3,3786.2,0.7847]
[1753834276335,7.643,3786.3,3784.8,1.26585]
[1753834276336,35.136,3786.2,3784.8,1.26585]
[1753834276609,34.0478,3786.2,3785.3,0.27930987]
[1753834276901,33.55,3786.2,3785.6,0.8281]
[1753834277306,4.668,3786.2,3785.6,1.0023]
[1753834277798,4.668,3786.2,3786.1,0.041]
[1753834278671,7.669,3786.2,3786.1,0.041]
[1753834279912,8.1668,3786.2,3786.1,0.041]
[1753834280840,7.669,3786.2,3786.1,0.041]
[1753834283439,7.801,3786.2,3786.1,0.041]
[1753834284092,7.251,3786.2,3786.1,0.041]
[1753834284296,3.132,3786.2,3786.1,1.0389]
[1753834284497,7.245,3786.2,3786.1,1.0389]
[1753834285112,7.245,3786.2,3786.1,0.8647]
[1753834286720,8.2928,3786.2,3786.1,0.041]
[1753834287101,7.795,3786.2,3786.1,0.041]
[1753834287913,8.2928,3786.2,3786.1,0.041]
[1753834289426,7.795,3786.2,3786.1,0.041]
[1753834290445,8.2928,3786.2,3786.1,0.041]
[1753834291849,7.795,3786.2,3786.1,0.041]
[1753834292745,8.283,3786.2,3786.1,0.041]
[1753834294443,8.7244,3786.2,3786.1,0.041]
[1753834295182,38.7244,3786.2,3786.1,0.041]
[1753834295798,39.2816,3786.2,3786.1,0.041]
[1753834296007,38.7244,3786.2,3786.1,0.041]
[1753834297518,8.7244,3786.2,3786.1,0.041]
[1753834297717,38.7244,3786.2,3786.1,0.041]
[1753834298314,38.283,3786.2,3786.1,0.041]
[1753834298717,33.682,3786.2,3786.1,0.041]
[1753834298937,3.682,3786.2,3786.1,0.041]
[1753834299145,7.233,3786.2,3786.1,0.7914]
[1753834299501,3.132,3786.2,3786.1,0.7914]
[1753834299737,7.235,3786.2,3786.1,0.7914]
[1753834302417,0.33029622,3786.3,3786.1,0.7914]
[1753834304225,4.105,3787.2,3787.0,0.1742]
[1753834304817,4.105,3787.2,3786.9,0.7897]
[1753834305062,0.20365398,3787.5,3787.1,0.8017]
[1753834305212,4.105,3787.4,3787.1,0.8017]
[1753834305408,0.20365398,3787.5,3787.3,0.8017]
[1753834305651,0.002,3787.5,3787.4,0.1742]
[1753834305817,4.106,3787.5,3787.4,0.1742]
[1753834306213,4.106,3787.5,3787.3,0.8017]
[1753834307149,0.002,3787.5,3787.3,0.8017]
[1753834307322,4.104,3787.4,3787.3,0.8017]
[1753834309351,4.103,3787.4,3787.3,0.8017]
[1753834310172,0.002,3787.5,3787.3,0.8017]
[1753834310354,4.102,3787.4,3787.3,0.8017]
[1753834311349,4.101,3787.4,3787.3,0.8017]
[1753834312244,4.1,3787.4,3787.3,0.8017]
[1753834312447,0.132,3787.4,3787.3,0.8017]
[1753834312680,0.002,3787.5,3787.3,0.9759]
[1753834312949,4.098,3787.4,3787.3,0.8017]
[1753834313532,0.002,3787.5,3787.3,0.9759]
[1753834313754,4.098,3787.4,3787.3,0.8017]
[1753834314465,4.098,3787.4,3787.3,0.9759]
[1753834317171,0.002,3787.5,3787.3,0.9759]
[1753834317472,4.095,3787.4,3787.3,0.8017]
[1753834318182,0.002,3787.5,3787.3,0.9759]
[1753834318383,0.002,3787.5,3787.4,0.9277]
[1753834318589,4.094,3787.5,3787.4,1.0597]
[1753834319744,0.132,3787.9,3787.4,0.8855]
[1753834320055,0.488,3789.0,3787.7,2.64007903]
[1753834320264,4.094,3788.8,3787.9,2.63998521]
[1753834320457,6.347,3789.1,3788.2,0.7535]
[1753834320658,6.347,3789.1,3788.3,3.0]
[1753834320871,6.347,3789.1,3788.5,0.7535]
[1753834321080,4.094,3788.8,3788.6,0.35672887]
[1753834321270,4.094,3788.8,3788.7,0.9277]
[1753834321601,0.002,3789.2,3788.7,0.9277]
[1753834321761,0.002,3789.2,3789.0,2.63918892]
[1753834321949,0.002,3789.2,3788.9,0.7749]
[1753834322153,0.002,3789.2,3789.0,0.7749]
[1753834322463,0.002,3789.2,3789.0,3.58831821]
[1753834322788,0.002,3789.2,3789.1,0.9513]
[1753834324587,0.002,3789.2,3789.1,3.59044913]
[1753834324787,4.093,3789.6,3789.4,0.7849]
[1753834324948,0.002,3789.6,3789.5,0.9591]
[1753834325152,0.002,3789.6,3789.5,1.90501]
[1753834325350,0.002,3789.6,3789.5,1.18081]
[1753834325560,0.002,3789.6,3789.5,4.54388056]
[1753834325776,0.002,3789.6,3789.5,7.54388056]
[1753834326396,0.002,3789.6,3789.5,4.35501]
[1753834327102,0.002,3789.6,3789.5,4.18081]
[1753834329850,0.002,3789.6,3789.5,4.31281]
[1753834330181,0.04,3789.9,3789.8,0.7502]
[1753834330584,0.04,3789.9,3789.8,0.8822]
[1753834331099,0.4872,3791.3,3789.9,0.766]
[1753834331302,0.5272,3790.9,3789.9,0.766]
[1753834331673,0.5272,3790.9,3790.8,0.766]
[1753834331884,0.5272,3790.9,3790.7,0.132]
[1753834331885,0.9916,3790.9,3790.7,0.132]
[1753834332193,4.5782,3790.8,3790.7,0.898]
[1753834332705,4.5772,3790.8,3790.7,0.898]
[1753834333227,0.134,3791.3,3790.7,0.898]
[1753834333228,0.002,3791.3,3790.7,0.898]
[1753834333710,0.002,3791.3,3791.2,0.132]
[1753834333915,0.002,3791.3,3791.2,0.964]
[1753834334218,0.4872,3791.3,3791.2,0.964]
[1753834334394,0.002,3791.3,3791.2,0.964]
[1753834334966,0.002,3791.7,3791.2,1.514]
[1753834335309,0.04,3791.9,3791.8,2.63726989]
[1753834335495,0.002,3792.5,3791.8,2.63726989]
[1753834335496,0.002,3792.5,3792.0,3.0]
[1753834335811,0.002,3792.5,3792.0,0.55]
[1753834336106,0.002,3792.5,3792.4,0.8938]
[1753834337668,0.002,3792.5,3792.4,1.4438]
[1753834337909,0.002,3792.5,3792.4,1.88818]
[1753834338091,0.002,3792.5,3792.4,4.52503265]
[1753834338266,0.002,3792.5,3792.4,4.69923265]
[1753834340504,0.002,3792.5,3792.4,4.52503265]
[1753834340718,0.042,3792.9,3792.7,0.8021]
[1753834340866,0.042,3792.9,3792.8,3.28046287]
[1753834341071,0.042,3792.9,3792.8,3.41246287]
[1753834341296,0.042,3792.9,3792.8,1.57798831]
[1753834341806,0.5272,3792.9,3792.8,1.57798831]
[1753834342684,0.9916,3792.9,3792.8,1.57798831]
[1753834342898,0.9916,3792.9,3792.8,0.9341]
[1753834343811,0.9916,3792.9,3792.8,0.132]
[1753834345019,0.042,3792.9,3792.8,0.132]
[1753834345225,0.042,3792.9,3792.8,0.9355]
[1753834345930,0.5272,3792.9,3792.8,0.9355]
[1753834346128,0.9916,3792.9,3792.8,0.9355]
[1753834346319,0.9916,3792.9,3792.8,0.132]
[1753834347831,0.4852,3793.4,3792.8,0.132]
[1753834348036,0.4852,3793.6,3792.9,1.3615]
[1753834348216,0.9496,3793.5,3793.0,0.14935]
[1753834348527,4.089,3794.0,3793.5,0.132]
[1753834348819,4.089,3794.0,3793.4,0.132]
[1753834349037,0.4852,3793.8,3793.6,0.132]
[1753834349327,0.9496,3794.0,3793.6,0.132]
[1753834350035,0.4872,3793.7,3793.6,0.132]
[1753834350188,0.9516,3793.7,3793.6,0.132]
[1753834350827,0.4872,3793.7,3793.6,0.132]
[1753834351514,0.9516,3793.7,3793.6,0.132]
[1753834351742,0.9516,3793.7,3793.0,0.8162]
[1753834351943,0.9405,3793.6,3792.6,1.5062907]
[1753834352115,0.9405,3793.5,3793.2,0.132]
[1753834352445,0.9405,3793.4,3793.2,0.132]
[1753834352639,0.134,3793.7,3793.2,0.132]
[1753834352841,0.9405,3793.3,3793.2,0.132]
[1753834353049,4.096,3793.7,3792.6,0.8162]
[1753834353228,4.096,3793.7,3793.3,0.7674]
[1753834353229,0.002,3793.7,3793.3,0.7674]
[1753834353425,0.002,3793.7,3793.6,0.132]
[1753834354019,0.002,3793.7,3793.6,2.76801855]
[1753834354315,0.002,3793.7,3793.6,3.58371855]
[1753834354521,0.002,3793.7,3793.6,1.56969452]
[1753834355412,0.002,3793.7,3793.6,0.9477]
[1753834355413,0.4712,3793.7,3793.6,0.9477]
[1753834355841,0.9425,3793.7,3793.6,0.132]
[1753834356713,0.9425,3793.7,3793.5,0.132]
[1753834356919,5.8033,3793.6,3792.4,0.28111747]
[1753834357252,0.9405,3793.5,3793.3,0.132]
[1753834357628,4.8628,3793.6,3793.3,0.132]
[1753834357833,0.9405,3793.4,3793.3,0.132]
[1753834363683,0.002,3793.7,3793.4,0.7605]
[1753834363836,0.002,3793.7,3793.6,0.132]
[1753834364738,0.002,3793.7,3793.6,1.33486458]
[1753834365074,0.002,3793.7,3793.6,2.14176458]
[1753834365261,0.002,3793.7,3793.6,1.4889]
[1753834365460,0.002,3793.7,3793.6,0.9389]
[1753834368353,0.4712,3793.7,3793.6,0.9389]
[1753834368753,0.9425,3793.7,3793.6,0.132]
[1753834372137,0.002,3793.7,3793.6,0.132]
[1753834372537,0.002,3793.7,3793.6,0.9386]
[1753834373767,0.002,3793.7,3793.6,1.59608158]
[1753834374551,0.002,3793.7,3793.6,0.9386]
[1753834374745,0.002,3793.7,3793.6,3.57461855]
[1753834374976,0.002,3793.7,3793.6,0.9386]
[1753834375175,0.002,3793.7,3793.6,3.57461855]
[1753834376290,0.002,3793.7,3793.6,3.74881855]
[1753834376504,0.002,3793.7,3793.6,7.93731539]
[1753834378489,0.04,3793.9,3793.6,7.93731539]
[1753834378689,0.04,3793.9,3793.8,6.40367959]
[1753834378895,0.04,3793.9,3793.8,6.53567959]
[1753834379282,0.04,3793.9,3793.8,6.70987959]
[1753834379612,0.04,3793.9,3793.8,7.76331909]
[1753834381193,0.002,3794.1,3794.0,3.18574064]
[1753834381403,0.002,3794.1,3794.0,3.99454064]
[1753834381568,0.002,3794.1,3794.0,4.30074064]
[1753834381781,0.002,3795.0,3794.5,0.55]
[1753834382016,0.002,3795.0,3794.9,0.132]
[1753834382525,0.002,3795.0,3794.9,2.76711554]
[1753834382687,0.002,3795.0,3794.9,7.62475894]
[1753834382896,0.002,3795.0,3794.9,4.9896434]